bitfinex/quotes_BTCUSD_20220306
["timestamp","ask_amount","ask_price","bid_price","bid_amount"]
[1646586078383,0.00022046,39263.0,39261.0,0.06369934]
[1646586078682,0.00022046,39263.0,39262.0,0.063699]
[1646586079481,0.0022,39266.0,39262.0,0.063699]
[1646586079682,0.00022072,39264.0,39262.0,0.063699]
[1646586080533,0.0022,39266.0,39262.0,0.063699]
[1646586080933,0.00022072,39265.0,39262.0,0.063699]
[1646586081136,0.00022072,39265.0,39261.0,0.06369934]
[1646586081633,0.00022072,39265.0,39261.0,0.06869934]
[1646586081836,0.0022,39266.0,39261.0,0.06869934]
[1646586082034,0.00022072,39265.0,39261.0,0.06869934]
[1646586082835,0.00022072,39265.0,39261.0,0.06369934]
[1646586083034,0.0022,39266.0,39261.0,0.06369934]
[1646586083238,0.00022044,39265.0,39261.0,0.06369934]
[1646586083837,0.00022044,39265.0,39261.0,0.06327751]
[1646586084284,0.0022,39266.0,39261.0,0.06327751]
[1646586084486,0.00022044,39265.0,39261.0,0.06327751]
[1646586085285,0.00022044,39265.0,39261.0,0.50312743]
[1646586085485,0.0022,39266.0,39261.0,0.63051443]
[1646586085686,0.0022,39266.0,39263.0,0.063694]
[1646586085687,0.00022044,39265.0,39263.0,0.063694]
[1646586085887,0.00022044,39265.0,39264.0,0.063695]
[1646586086485,0.00022044,39265.0,39263.0,0.063694]
[1646586086689,0.00022044,39265.0,39262.0,0.1]
[1646586086690,0.15299414,39265.0,39262.0,0.1]
[1646586086985,0.0022,39266.0,39262.0,0.1]
[1646586086986,0.00242046,39266.0,39262.0,0.1]
[1646586087187,0.00242046,39266.0,39263.0,0.31245992]
[1646586087385,0.00242046,39266.0,39261.0,0.0637]
[1646586087584,0.00242046,39266.0,39261.0,0.0687]
[1646586087836,0.00242046,39266.0,39261.0,0.1687]
[1646586087837,0.0022,39266.0,39261.0,0.1687]
[1646586088237,0.00022046,39265.0,39261.0,0.1687]
[1646586088839,0.00022046,39265.0,39261.0,0.1637]
[1646586089039,0.0022,39266.0,39261.0,0.1637]
[1646586089240,0.00010067,39265.0,39264.0,0.063693]
[1646586089841,0.26173796,39268.0,39266.0,0.0029229]
[1646586090641,0.0011,39268.0,39266.0,0.0029229]
[1646586091991,0.20858522,39267.0,39266.0,0.0029229]
[1646586092188,0.0011,39268.0,39266.0,0.0029229]
[1646586092589,0.26173796,39268.0,39266.0,0.0029229]
[1646586096532,0.31245992,39267.0,39266.0,0.0029229]
[1646586096733,0.26173796,39268.0,39266.0,0.0029229]
[1646586096736,0.31386555,39268.0,39266.0,0.0029229]
[1646586096934,0.051,39267.0,39266.0,0.0029229]
[1646586097132,0.36376555,39267.0,39266.0,0.0029229]
[1646586097331,0.53085802,39267.0,39266.0,0.0029229]
[1646586098737,0.84331794,39267.0,39266.0,0.0029229]
[1646586098933,0.53055239,39267.0,39266.0,0.0029229]
[1646586100377,0.68055239,39267.0,39266.0,0.0029229]
[1646586100579,1.04544554,39267.0,39266.0,0.0029229]
[1646586100778,1.18198045,39267.0,39266.0,0.0029229]
[1646586101478,0.86952053,39267.0,39266.0,0.0029229]
[1646586101876,0.73298562,39267.0,39266.0,0.0029229]
[1646586102077,1.04544554,39267.0,39266.0,0.0029229]
[1646586102478,1.03198045,39267.0,39266.0,0.0029229]
[1646586103435,1.03170535,39267.0,39266.0,0.0029229]
[1646586105936,0.71924543,39267.0,39266.0,0.0029229]
[1646586106137,1.03170535,39267.0,39266.0,0.0029229]
[1646586106340,0.89517044,39267.0,39266.0,0.0029229]
[1646586106580,1.03170535,39267.0,39266.0,0.0029229]
[1646586106981,0.89517044,39267.0,39266.0,0.0029229]
[1646586107183,0.58271052,39267.0,39266.0,0.0029229]
[1646586107482,0.58271052,39267.0,39258.0,0.14617122]
[1646586107483,1.1,39266.0,39258.0,0.14617122]
[1646586107682,1.1,39266.0,39258.0,0.15321715]
[1646586107683,0.26048803,39262.0,39258.0,0.15321715]
[1646586108281,0.42464985,39262.0,39258.0,0.15321714]
[1646586108482,0.42487133,39262.0,39258.0,0.15321714]
[1646586109285,0.26070951,39262.0,39258.0,0.15321714]
[1646586109484,0.26048803,39262.0,39258.0,0.15321714]
[1646586109685,0.26070922,39262.0,39258.0,0.15296714]
[1646586110087,0.25570922,39262.0,39258.0,0.15296714]
[1646586110736,0.25548803,39262.0,39258.0,0.1459212]
[1646586110936,0.25570922,39262.0,39258.0,0.1459212]
[1646586111337,0.25570922,39262.0,39258.0,0.1393546]
[1646586111735,0.25570922,39262.0,39258.0,0.1391046]
[1646586111936,0.25548803,39262.0,39258.0,0.13205866]
[1646586112137,0.25570922,39262.0,39258.0,0.13205866]
[1646586112737,0.25570922,39262.0,39258.0,0.13180866]
[1646586112939,0.25570922,39262.0,39258.0,0.12476272]
[1646586113138,0.25548803,39262.0,39258.0,0.12476272]
[1646586113336,0.25558786,39262.0,39258.0,0.12476272]
[1646586113938,0.25558786,39262.0,39258.0,0.11771678]
[1646586114183,0.25548803,39262.0,39258.0,0.11771678]
[1646586114381,0.25558786,39262.0,39258.0,0.11115018]
[1646586114981,9.983e-05,39262.0,39258.0,0.10410424]
[1646586115181,9.983e-05,39262.0,39259.0,0.31245992]
[1646586115383,0.31368564,39268.0,39259.0,0.31245992]
[1646586115581,9.983e-05,39262.0,39261.0,0.15900479]
[1646586116582,0.31368564,39268.0,39261.0,0.15900479]
[1646586116983,0.00023711,39263.0,39261.0,0.15925479]
[1646586117833,0.31368564,39268.0,39261.0,0.15925479]
[1646586118034,0.00023711,39264.0,39261.0,0.15950479]
[1646586118235,0.00023711,39264.0,39261.0,0.0005]
[1646586118936,0.00023711,39264.0,39261.0,0.00075]
[1646586119235,0.00023711,39264.0,39261.0,0.00731658]
[1646586119836,0.26040454,39266.0,39264.0,0.00032338]
[1646586120236,0.43815272,39266.0,39264.0,0.00032338]
[1646586120436,0.26040454,39266.0,39264.0,0.00032338]
[1646586120635,0.26040454,39265.0,39264.0,0.00032338]
[1646586121036,0.26040454,39265.0,39264.0,0.00057338]
[1646586121241,0.26040454,39265.0,39250.0,0.50138666]
[1646586121242,1.485706,39264.0,39250.0,0.50138666]
[1646586121443,1.485706,39264.0,39250.0,0.08899171]
[1646586121444,0.15,39255.0,39250.0,0.08899171]
[1646586121700,0.20826754,39252.0,39250.0,0.08899171]
[1646586121999,0.15,39253.0,39250.0,0.08899171]
[1646586122000,0.69646923,39251.0,39250.0,0.08899171]
[1646586122197,0.69646923,39251.0,39250.0,0.0889917]
[1646586122401,1.11858167,39251.0,39250.0,0.0889917]
[1646586122598,1.49492331,39251.0,39250.0,0.0889917]
[1646586122801,2.38882935,39251.0,39250.0,0.0889917]
[1646586122997,1.94812092,39251.0,39250.0,9.17e-05]
[1646586123201,2.33325692,39251.0,39250.0,0.00713762]
[1646586123400,1.1,39250.0,39244.0,0.00012846]
[1646586123601,0.20827866,39245.0,39244.0,0.00012846]
[1646586123901,0.82852917,39245.0,39237.0,0.62783512]
[1646586124100,0.82852917,39245.0,39244.0,0.00022812]
[1646586124702,0.74983655,39245.0,39244.0,0.00022812]
[1646586125001,0.74983655,39245.0,39237.0,0.4189895]
[1646586125002,0.62025051,39245.0,39237.0,0.4189895]
[1646586125201,0.17229506,39239.0,39237.0,0.4189895]
[1646586125448,0.17229506,39239.0,39237.0,0.41988679]
[1646586126053,0.31223596,39238.0,39237.0,0.41988679]
[1646586126252,0.051,39238.0,39237.0,0.4189895]
[1646586126854,0.36323596,39238.0,39237.0,8.95e-05]
[1646586127057,1.19132568,39238.0,39237.0,8.95e-05]
[1646586128453,0.063772,39235.0,39228.0,0.40461119]
[1646586128652,0.063772,39235.0,39185.0,0.05717198]
[1646586128653,0.36585722,39234.0,39219.0,0.75999495]
[1646586128852,0.21127684,39230.0,39220.0,0.1]
[1646586129982,0.21127684,39230.0,39219.0,0.4476]
[1646586130184,0.31485722,39229.0,39218.0,0.001]
[1646586130983,0.37864222,39229.0,39218.0,0.001]
[1646586131283,0.06378431,39227.0,39218.0,0.001]
[1646586131488,0.37864522,39226.0,39218.0,0.001]
[1646586131784,0.31485722,39226.0,39218.0,0.001]
[1646586131983,0.051,39229.0,39218.0,0.001]
[1646586131984,0.31485722,39228.0,39218.0,0.001]
[1646586132384,0.31485722,39228.0,39220.0,0.00023735]
[1646586133036,0.12757357,39226.0,39220.0,0.00023735]
[1646586133241,0.31485722,39225.0,39220.0,0.00023735]
[1646586133436,0.31485722,39225.0,39212.0,0.21548688]
[1646586133637,0.31485722,39225.0,39221.0,0.00023734]
[1646586133838,0.12757357,39226.0,39221.0,0.00023734]
[1646586134039,0.76432,39225.0,39221.0,0.00023734]
[1646586134440,0.97391379,39225.0,39221.0,0.00023734]
[1646586134638,0.97391379,39225.0,39215.0,0.002]
[1646586134639,0.76432,39225.0,39215.0,0.002]
[1646586135037,0.76432,39225.0,39220.0,0.21604704]
[1646586135838,0.31485722,39224.0,39212.0,0.106]
[1646586136037,0.00010134,39224.0,39212.0,0.106]
[1646586136437,0.00010134,39224.0,39216.0,0.05318294]
[1646586136686,0.00010134,39224.0,39212.0,0.106]
[1646586136885,0.1651921,39222.0,39219.0,0.15743035]
[1646586137287,0.00023729,39220.0,39219.0,0.15743035]
[1646586137685,0.00023729,39220.0,39213.0,0.004]
[1646586138288,0.31485722,39221.0,39213.0,0.004]
[1646586138488,0.051,39220.0,39213.0,0.004]
[1646586138688,0.00023729,39219.0,39213.0,0.004]
[1646586138889,0.051,39218.0,39212.0,0.00023734]
[1646586139088,0.21179234,39216.0,39212.0,0.00023734]
[1646586139288,0.051,39218.0,39212.0,0.00023734]
[1646586139490,0.051,39218.0,39210.0,0.21694546]
[1646586139789,0.051,39218.0,39212.0,0.00023733]
[1646586139991,0.31485722,39217.0,39212.0,0.00023733]
[1646586140188,0.051,39218.0,39212.0,0.00023733]
[1646586140438,0.31485722,39217.0,39212.0,0.00023733]
[1646586140636,0.051,39218.0,39211.0,0.003]
[1646586140838,0.051,39218.0,39212.0,0.00022205]
[1646586141838,0.42965533,39218.0,39211.0,0.002]
[1646586142039,0.42965533,39218.0,39212.0,0.00021444]
[1646586142040,0.20052425,39213.0,39212.0,0.00021444]
[1646586143041,0.20052425,39213.0,39210.0,0.001]
[1646586143244,0.20052425,39213.0,39211.0,0.00021444]
[1646586144295,0.20052425,39213.0,39210.0,0.001]
[1646586144495,0.3281378,39213.0,39210.0,0.00121571]
[1646586145298,0.31485722,39212.0,39210.0,0.00121571]
[1646586145495,0.3281378,39213.0,39210.0,0.001]
[1646586145896,0.3281378,39213.0,39210.0,0.00120776]
[1646586146098,0.37867122,39212.0,39210.0,0.00120776]
[1646586146301,0.31485722,39211.0,39210.0,0.00120776]
[1646586146696,0.31485722,39211.0,39210.0,0.001]
[1646586146996,0.02552648,39211.0,39210.0,0.001]
[1646586147595,0.01273,39212.0,39210.0,0.001]
[1646586148037,0.17228286,39215.0,39210.0,0.001]
[1646586148238,0.005,39215.0,39210.0,0.001]
[1646586148936,0.00020788,39219.0,39210.0,0.001]
[1646586149237,0.31485722,39221.0,39211.0,0.00020841]
[1646586149438,0.00020837,39219.0,39211.0,0.00020841]
[1646586149936,0.00020837,39219.0,39208.0,0.1721346]
[1646586149937,0.00138917,39209.0,39208.0,0.1721346]
[1646586150138,0.00138917,39209.0,39206.0,0.004]
[1646586150938,0.00138917,39209.0,39203.0,0.4084]
[1646586151138,0.00138917,39209.0,39203.0,0.47516825]
[1646586151339,0.00138917,39209.0,39203.0,0.4084]
[1646586153003,0.00138917,39209.0,39204.0,0.00022347]
[1646586153803,0.00138917,39209.0,39203.0,0.4084]
[1646586154003,0.00138917,39209.0,39205.0,0.00020711]
[1646586155104,0.00138917,39209.0,39203.0,0.4084]
[1646586155342,0.00138917,39209.0,39205.0,0.00020636]
[1646586156346,0.00138917,39209.0,39203.0,0.4084]
[1646586156544,0.00138917,39209.0,39205.0,0.00020636]
[1646586157346,0.00138917,39209.0,39205.0,0.17566636]
[1646586157547,0.00138917,39209.0,39205.0,0.17546]
[1646586157745,0.00138917,39209.0,39205.0,0.17566636]
[1646586158747,0.00138917,39209.0,39205.0,0.17546]
[1646586158946,0.00138917,39209.0,39205.0,0.17566782]
[1646586159189,0.00138917,39209.0,39208.0,0.16758925]
[1646586159387,0.00138917,39209.0,39208.0,0.2327984]
[1646586162193,0.00138917,39209.0,39208.0,0.16758925]
[1646586162392,0.00138917,39209.0,39205.0,0.1]
[1646586162591,0.00138917,39209.0,39203.0,0.4084]
[1646586162594,0.00138917,39209.0,39207.0,0.00020844]
[1646586163642,0.00138917,39209.0,39204.0,0.004]
[1646586163643,0.06520315,39209.0,39204.0,0.004]
[1646586163842,0.06520315,39209.0,39206.0,0.00020845]
[1646586164843,0.06520315,39209.0,39204.0,0.004]
[1646586165045,0.06520315,39209.0,39206.0,0.00020845]
[1646586165644,0.12901715,39209.0,39206.0,0.00020845]
[1646586166049,0.12901715,39209.0,39200.0,0.002]
[1646586166248,0.12901715,39209.0,39206.0,0.00020851]
[1646586167085,0.12901715,39209.0,39200.0,0.00083418]
[1646586167287,0.31485722,39208.0,39206.0,0.00020851]
[1646586167487,0.06520317,39209.0,39206.0,0.00020851]
[1646586167687,0.00138917,39209.0,39206.0,0.00020851]
[1646586168286,0.00138917,39209.0,39203.0,0.002]
[1646586168488,0.00138917,39209.0,39206.0,0.00020851]
[1646586168986,0.00138917,39209.0,39196.0,0.16771112]
[1646586168987,1.25,39208.0,39195.0,0.1661672]
[1646586169386,0.17923841,39200.0,39195.0,0.1661672]
[1646586169587,0.31901788,39207.0,39195.0,0.1661672]
[1646586169786,1.1,39208.0,39195.0,0.1661672]
[1646586170544,0.15,39208.0,39195.0,0.1661672]
[1646586171352,0.20842836,39203.0,39195.0,0.1661672]
[1646586171944,0.15,39208.0,39195.0,0.1661672]
[1646586172345,0.31901788,39207.0,39195.0,0.1661672]
[1646586172544,0.15,39208.0,39195.0,0.1661672]
[1646586173145,0.00138917,39209.0,39201.0,0.21997278]
[1646586173548,0.00023733,39206.0,39201.0,0.21997278]
[1646586174395,0.17553459,39208.0,39201.0,0.21997278]
[1646586174595,0.00023734,39206.0,39201.0,0.21997278]
[1646586175596,0.17553459,39208.0,39201.0,0.21997278]
[1646586175894,0.00023734,39206.0,39201.0,0.21997278]
[1646586176394,0.00023734,39206.0,39201.0,0.28376978]
[1646586176599,0.00023734,39206.0,39201.0,0.21997278]
[1646586176895,0.00138917,39209.0,39201.0,0.21997278]
[1646586177094,0.00023734,39206.0,39201.0,0.21997278]
[1646586177963,0.00138917,39209.0,39201.0,0.21997278]
[1646586178161,0.00021354,39206.0,39201.0,0.21997278]
[1646586179165,0.00138917,39209.0,39201.0,0.21997278]
[1646586179560,0.00021354,39206.0,39201.0,0.21997278]
[1646586180462,0.00138917,39209.0,39201.0,0.21997278]
[1646586180662,0.00021354,39206.0,39201.0,0.21997278]
[1646586181587,0.00138917,39209.0,39201.0,0.21997278]
[1646586181792,0.00020867,39206.0,39201.0,0.21997278]
[1646586181987,0.00020867,39206.0,39199.0,0.26111366]
[1646586182189,0.15,39204.0,39199.0,0.26111366]
[1646586182788,0.15,39207.0,39199.0,0.26111366]
[1646586182989,0.32040705,39209.0,39198.0,0.18735325]
[1646586182990,0.31901788,39206.0,39198.0,0.18735325]
[1646586183188,0.15,39204.0,39198.0,0.18756196]
[1646586183388,0.15,39204.0,39198.0,0.00020871]
[1646586183788,0.00020867,39206.0,39198.0,0.00020871]
[1646586183990,0.15,39204.0,39196.0,0.006]
[1646586184189,0.15,39202.0,39196.0,0.006]
[1646586184393,0.31901788,39201.0,39198.0,0.00020871]
[1646586184589,1.1,39200.0,39196.0,0.00559419]
[1646586184989,1.1,39200.0,39190.0,0.31353379]
[1646586185190,0.19091054,39196.0,39190.0,0.31353379]
[1646586185446,0.19091054,39196.0,39189.0,0.31353379]
[1646586186445,0.19091054,39196.0,39188.0,0.18049518]
[1646586186446,0.19091054,39196.0,39188.0,0.49402897]
[1646586186645,0.19091054,39196.0,39188.0,0.18049518]
[1646586187447,0.15,39197.0,39188.0,0.18049518]
[1646586187848,0.15,39197.0,39189.0,0.0570889]
[1646586188047,0.15,39197.0,39188.0,0.18049518]
[1646586188449,0.17264907,39195.0,39188.0,0.18049518]
[1646586188848,0.17264907,39195.0,39188.0,0.17549518]
[1646586188849,0.32264907,39195.0,39188.0,0.17549518]
[1646586189091,0.15,39195.0,39188.0,0.17549518]
[1646586189793,0.15,39195.0,39188.0,0.23567341]
[1646586189989,0.31901788,39200.0,39188.0,0.23567341]
[1646586190190,0.15,39195.0,39188.0,0.23567341]
[1646586190389,0.31901788,39200.0,39188.0,0.17549518]
[1646586190589,0.15,39197.0,39188.0,0.17549518]
[1646586190791,0.31901788,39200.0,39188.0,0.17549518]
[1646586191090,0.15,39197.0,39188.0,0.17549518]
[1646586191293,0.1921752,39196.0,39188.0,0.17549518]
[1646586192091,0.15,39195.0,39188.0,0.17549518]
[1646586192298,0.1921752,39196.0,39189.0,0.07279482]
[1646586192492,0.15,39198.0,39189.0,0.07279482]
[1646586193551,0.15,39196.0,39189.0,0.07279482]
[1646586193952,0.15,39197.0,39189.0,0.07279482]
[1646586194152,0.15,39197.0,39195.0,0.17728744]
[1646586194451,0.01274,39201.0,39195.0,0.17728744]
[1646586194653,0.01274,39205.0,39196.0,0.0594644]
[1646586194858,0.01274,39205.0,39195.0,0.22828744]
[1646586194862,0.01274,39208.0,39206.0,0.06851784]
[1646586195053,0.00138917,39209.0,39198.0,0.02546]
[1646586195054,0.00138917,39209.0,39200.0,0.051]
[1646586195254,0.00138917,39209.0,39207.0,0.21681351]
[1646586196589,0.00138917,39209.0,39203.0,0.05002]
[1646586200444,0.00138917,39209.0,39201.0,0.20109377]
[1646586200648,0.00138917,39209.0,39207.0,0.05002]
[1646586200844,0.00138917,39209.0,39201.0,0.15111377]
[1646586204295,0.00023738,39207.0,39201.0,0.15111377]
[1646586205096,0.15,39207.0,39201.0,0.15111377]
[1646586205298,0.00023738,39206.0,39201.0,0.15111377]
[1646586206295,0.15,39208.0,39201.0,0.15111377]
[1646586206494,0.00010247,39205.0,39201.0,0.15111377]
[1646586207496,0.15,39206.0,39201.0,0.15111377]
[1646586207696,0.00010247,39205.0,39201.0,0.15111377]
[1646586208744,0.15,39206.0,39201.0,0.15111377]
[1646586208945,0.10138917,39209.0,39201.0,0.15111377]
[1646586208946,0.00023719,39205.0,39201.0,0.15111377]
[1646586209945,0.25138917,39209.0,39201.0,0.21491177]
[1646586210146,0.00023719,39205.0,39204.0,0.05673901]
[1646586211146,0.10138917,39209.0,39207.0,0.1963154]
[1646586213796,0.10138917,39209.0,39201.0,0.002]
[1646586215002,0.0002282,39207.0,39202.0,0.17926324]
[1646586215839,0.10138917,39209.0,39202.0,0.17926324]
[1646586216241,0.53778971,39201.0,39199.0,0.1]
[1646586216443,0.53778971,39201.0,39196.0,0.36876206]
[1646586216444,0.53778971,39201.0,39197.0,0.1]
[1646586216940,0.53778971,39201.0,39196.0,0.00422827]
[1646586217140,0.53778971,39201.0,39195.0,0.01274]
[1646586217342,0.53778971,39201.0,39196.0,0.00022085]
[1646586218342,0.53778971,39201.0,39195.0,0.01274]
[1646586218540,0.53778971,39201.0,39196.0,0.00022085]
[1646586219392,0.53778971,39201.0,39195.0,0.01274]
[1646586219593,0.53778971,39201.0,39196.0,0.00022085]
[1646586220194,0.15784793,39199.0,39196.0,0.00022085]
[1646586220590,0.15784793,39199.0,39195.0,0.01274]
[1646586220795,0.15784793,39199.0,39196.0,0.00022135]
[1646586221892,0.15784793,39199.0,39195.0,0.01274]
[1646586222091,0.15784793,39199.0,39196.0,0.00022135]
[1646586223146,0.15784793,39199.0,39190.0,0.31353379]
[1646586223349,0.15784793,39199.0,39196.0,0.00022119]
[1646586223548,0.15,39197.0,39196.0,0.00022119]
[1646586223746,0.14991458,39197.0,39196.0,0.00022119]
[1646586223945,0.14991458,39198.0,39196.0,0.00022119]
[1646586224345,0.14991458,39198.0,39187.0,0.22226144]
[1646586224548,0.14991458,39196.0,39195.0,0.00022116]
[1646586225348,0.3168386,39198.0,39195.0,0.00022116]
[1646586225548,0.3168386,39198.0,39187.0,0.16575248]
[1646586225750,0.14991458,39196.0,39194.0,0.00022116]
[1646586226696,0.14991458,39196.0,39191.0,0.003]
[1646586226995,0.3168386,39198.0,39193.0,0.00022133]
[1646586227596,0.14991458,39194.0,39193.0,0.00022133]
[1646586227798,0.14991458,39194.0,39189.0,0.004]
[1646586228096,0.14991458,39195.0,39189.0,0.004]
[1646586228300,0.14991458,39192.0,39189.0,0.004]
[1646586228498,0.14991458,39192.0,39191.0,0.00638121]
[1646586228699,0.14991458,39195.0,39191.0,0.00638121]
[1646586228998,0.14991458,39195.0,39185.0,0.23568551]
[1646586230438,0.14991458,39195.0,39185.0,0.29951051]
[1646586230647,0.14991458,39195.0,39186.0,0.06619953]
[1646586230843,0.14991458,39195.0,39185.0,0.23568651]
[1646586231250,0.3168386,39197.0,39185.0,0.23568651]
[1646586231742,0.14991458,39193.0,39189.0,0.00023714]
[1646586232842,0.14991458,39193.0,39185.0,0.23568651]
[1646586233045,0.14991458,39196.0,39189.0,0.00023714]
[1646586233543,0.3168386,39197.0,39189.0,0.00023714]
[1646586233747,0.28404,39200.0,39189.0,0.00023714]
[1646586234095,0.2713,39200.0,39191.0,0.00022476]
[1646586234296,0.53778971,39201.0,39195.0,0.19513364]
[1646586234496,0.53778971,39201.0,39195.0,0.25894064]
[1646586234695,0.68770429,39201.0,39195.0,0.25894064]
[1646586234895,0.53778971,39201.0,39195.0,0.25894064]
[1646586235098,0.53778971,39201.0,39196.0,0.0638034]
[1646586235300,0.53778971,39201.0,39196.0,0.06402814]
[1646586235498,0.53778971,39201.0,39196.0,0.00022474]
[1646586236097,0.20524003,39199.0,39196.0,0.00022474]
[1646586236300,0.20524003,39199.0,39193.0,0.004]
[1646586236497,0.20524003,39199.0,39196.0,0.0002172]
[1646586237498,0.20524003,39199.0,39192.0,0.17150522]
[1646586237949,0.20524003,39199.0,39190.0,0.104]
[1646586238352,0.14991458,39197.0,39190.0,0.004]
[1646586238551,0.3168386,39196.0,39190.0,0.004]
[1646586238954,0.06383133,39195.0,39190.0,0.004]
[1646586239152,0.3168386,39194.0,39182.0,0.20089405]
[1646586239754,0.3806716,39194.0,39182.0,0.20089405]
[1646586240256,0.0638329,39191.0,39186.0,0.00022257]
[1646586240454,0.1276659,39191.0,39186.0,0.00022257]
[1646586241055,0.0638329,39191.0,39186.0,0.00022257]
[1646586241254,0.0638329,39191.0,39182.0,0.20089405]
[1646586241459,0.0638329,39191.0,39187.0,0.00023116]
[1646586241700,0.0638329,39191.0,39187.0,0.00015144]
[1646586242300,0.0638329,39191.0,39182.0,0.20089405]
[1646586242500,0.1276659,39191.0,39182.0,0.20089405]
[1646586244500,0.5083415,39191.0,39178.0,0.1]
[1646586244702,0.21375048,39189.0,39178.0,0.1]
[1646586244904,0.21375048,39189.0,39185.0,0.00023709]
[1646586245102,0.063837,39188.0,39185.0,0.00023709]
[1646586245349,0.3806756,39188.0,39185.0,0.00023709]
[1646586245749,0.4445156,39188.0,39185.0,0.00023709]
[1646586245948,0.4445156,39188.0,39181.0,0.003]
[1646586246148,0.063845,39184.0,39181.0,0.003]
[1646586246348,0.21375717,39185.0,39169.0,0.555]
[1646586246349,0.00505151,39176.0,39169.0,0.555]
[1646586246550,0.00505151,39176.0,39173.0,0.00638244]
[1646586246752,0.00505151,39176.0,39175.0,0.00638358]
[1646586247357,0.06386046,39174.0,39167.0,0.0011]
[1646586247550,0.3168386,39173.0,39167.0,0.0011]
[1646586247749,0.06386046,39174.0,39167.0,0.0011]
[1646586247948,0.06386046,39174.0,39163.0,0.4095]
[1646586247949,1.16386046,39174.0,39163.0,0.4028]
[1646586248148,1.16386046,39174.0,39163.0,0.0011]
[1646586248149,0.46675318,39173.0,39163.0,0.0011]
[1646586248348,0.18277725,39168.0,39163.0,0.0011]
[1646586248548,0.18277725,39168.0,39167.0,0.00638447]
[1646586251200,0.49961585,39168.0,39166.0,0.00023715]
[1646586251402,0.3168386,39167.0,39166.0,0.00023715]
[1646586251602,0.3168386,39167.0,39166.0,0.04551978]
[1646586251800,0.18277725,39168.0,39166.0,0.04551978]
[1646586252002,0.18277725,39168.0,39163.0,0.0011]
[1646586252502,0.3168386,39167.0,39163.0,0.0011]
[1646586252703,0.3118386,39167.0,39166.0,0.04528263]
[1646586252944,0.31169016,39167.0,39166.0,0.04528263]
[1646586254246,0.31169016,39167.0,39166.0,0.04028263]
[1646586254649,0.31169016,39167.0,39166.0,2.63e-06]
[1646586254848,0.37557116,39167.0,39165.0,0.00023688]
[1646586255047,0.46557474,39166.0,39165.0,0.00023688]
[1646586255247,0.46557474,39166.0,39165.0,0.13523688]
[1646586256347,0.46557474,39166.0,39162.0,0.0011]
[1646586256608,0.46557474,39166.0,39161.0,0.0011]
[1646586256609,0.14991458,39163.0,39161.0,0.0011]
[1646586256804,0.70079616,39162.0,39161.0,0.0011]
[1646586257005,0.70079616,39162.0,39154.0,0.4095]
[1646586257209,0.14991458,39157.0,39154.0,0.4095]
[1646586258103,0.06389,39158.0,39154.0,0.4095]
[1646586258304,0.14991458,39157.0,39154.0,0.4095]
[1646586258503,0.19167098,39158.0,39154.0,0.4095]
[1646586258703,0.14991458,39157.0,39154.0,0.4095]
[1646586259506,0.14991458,39157.0,39155.0,0.00133699]
[1646586260445,0.14991458,39157.0,39155.0,0.0011]
[1646586260646,0.14991458,39157.0,39155.0,0.00133699]
[1646586260847,0.21379958,39160.0,39155.0,0.00133699]
[1646586261052,0.06388398,39161.0,39155.0,0.00133699]
[1646586261053,0.14991458,39161.0,39155.0,0.00133699]
[1646586261648,0.14991458,39161.0,39155.0,0.0011]
[1646586261850,0.14991458,39161.0,39157.0,0.00022941]
[1646586262849,0.14991458,39161.0,39155.0,0.20388317]
[1646586263049,0.14991458,39161.0,39157.0,0.0002294]
[1646586263349,0.14991458,39161.0,39155.0,0.20121257]
[1646586263350,1.1,39160.0,39155.0,0.20121257]
[1646586263648,0.14991458,39161.0,39155.0,0.20121257]
[1646586264696,0.14991458,39161.0,39155.0,0.19621257]
[1646586265496,0.1,39162.0,39155.0,0.19621257]
[1646586267100,0.1,39161.0,39155.0,0.19621257]
[1646586267948,0.1,39161.0,39155.0,0.19643452]
[1646586268750,0.1,39161.0,39155.0,0.19621257]
[1646586268948,0.1,39161.0,39155.0,0.19643962]
[1646586269349,0.1,39161.0,39155.0,0.00022705]
[1646586269951,0.1,39161.0,39154.0,0.4095]
[1646586270153,0.1,39161.0,39155.0,0.00022705]
[1646586270356,0.1,39161.0,39157.0,0.1773388]
[1646586270956,0.1,39161.0,39156.0,0.051]
[1646586271156,0.1,39161.0,39154.0,0.4095]
[1646586271157,0.31386398,39160.0,39154.0,0.4095]
[1646586271639,0.31386398,39160.0,39150.0,0.0011]
[1646586271838,0.127802,39158.0,39150.0,0.0011]
[1646586272037,0.127802,39158.0,39150.0,0.0041]
[1646586272038,0.19334321,39151.0,39150.0,0.0041]
[1646586272238,0.19334321,39151.0,39148.0,0.0011]
[1646586272239,0.06609416,39150.0,39148.0,0.0011]
[1646586272440,1.1,39148.0,39141.0,0.001]
[1646586272640,0.385136,39146.0,39141.0,0.001]
[1646586272839,0.36486398,39147.0,39143.0,5.42e-06]
[1646586272840,0.36486398,39145.0,39143.0,5.42e-06]
[1646586273040,1.08025398,39144.0,39143.0,5.42e-06]
[1646586273238,1.26891498,39144.0,39143.0,5.42e-06]
[1646586273439,1.45254521,39144.0,39143.0,5.42e-06]
[1646586273644,1.38384698,39144.0,39141.0,0.001]
[1646586273839,0.140626,39143.0,39141.0,0.001]
[1646586274038,0.81739,39142.0,39141.0,0.001]
[1646586274240,1.13125398,39142.0,39141.0,0.001]
[1646586274442,1.23125398,39142.0,39141.0,0.001]
[1646586274841,1.45987121,39142.0,39141.0,0.001]
[1646586275242,0.7774,39141.0,39129.0,0.00630396]
[1646586275462,0.7774,39138.0,39129.0,0.00630396]
[1646586275666,0.7774,39138.0,39128.0,0.01]
[1646586275667,0.7774,39136.0,39124.0,0.001]
[1646586275867,0.841349,39132.0,39124.0,0.001]
[1646586276062,0.05534247,39130.0,39124.0,0.001]
[1646586276261,0.1875,39134.0,39128.0,0.00023589]
[1646586276262,0.140667,39133.0,39128.0,0.00023589]
[1646586276463,0.76639,39129.0,39128.0,0.00023589]
[1646586276662,0.76639,39129.0,39116.0,0.31345966]
[1646586276663,1.1,39128.0,39116.0,0.31345966]
[1646586276863,0.063945,39126.0,39116.0,0.31386398]
[1646586277162,0.76639,39129.0,39124.0,0.06623229]
[1646586277362,0.76639,39129.0,39114.0,0.02546]
[1646586277565,0.76639,39129.0,39115.0,0.01353639]
[1646586277763,0.76639,39129.0,39126.0,0.17809392]
[1646586277961,0.76639,39129.0,39110.0,0.00265]
[1646586278161,0.76639,39129.0,39112.0,0.01520313]
[1646586278367,0.76639,39129.0,39112.0,0.1]
[1646586278563,0.31386398,39128.0,39111.0,0.19017976]